bitfinex/quotes_SOLUSD_20240717
["timestamp","ask_amount","ask_price","bid_price","bid_amount"]
[1721253654838,20.0,156.79,156.77,15.9462]
[1721253658545,20.0,156.79,156.77,17.22176991]
[1721253659046,20.0,156.8,156.77,17.22176991]
[1721253660245,20.0,156.8,156.77,15.9462]
[1721253660443,20.0,156.8,156.74,15.9494]
[1721253660630,6.3787,156.78,156.74,15.9494]
[1721253660943,20.0,156.77,156.74,15.9494]
[1721253661143,20.0,156.77,156.72,6.3807]
[1721253661444,15.9452,156.79,156.71,15.9525]
[1721253661643,6.3804,156.73,156.68,22.5603]
[1721253662346,20.0,156.72,156.66,15.2181]
[1721253662542,6.3809,156.72,156.68,6.3824]
[1721253662851,20.0,156.71,156.67,7.65900405]
[1721253663030,20.0,156.71,156.68,1.27630423]
[1721253663220,20.0,156.71,156.67,7.65900648]
[1721253663940,20.0,156.71,156.68,1.27633718]
[1721253664147,21.5182,156.82,156.68,1.27633718]
[1721253664337,6.3774,156.81,156.76,6.3789]
[1721253664542,15.9401,156.84,156.71,16.0913]
[1721253664757,6.3771,156.81,156.76,6.379]
[1721253664946,6.3771,156.81,156.76,7.65463956]
[1721253665634,6.3775,156.8,156.76,7.65463956]
[1721253666633,6.3772,156.81,156.76,1.27563956]
[1721253666955,6.3772,156.81,156.76,7.65473956]
[1721253667154,20.0,156.8,156.76,7.65473956]
[1721253667455,26.3777,156.8,156.76,7.65473956]
[1721253667638,6.378,156.79,156.75,22.3278]
[1721253668232,26.3776,156.8,156.75,22.3278]
[1721253669659,26.3776,156.8,156.76,6.3791]
[1721253670574,20.0,156.8,156.76,6.3791]
[1721253670755,26.3776,156.8,156.76,6.3791]
[1721253671660,22.2061,156.86,156.81,6.3767]
[1721253671831,6.3756,156.85,156.8,6.3774]
[1721253672247,37.9111,156.9,156.81,15.9423]
[1721253672446,6.3748,156.87,156.82,7.65158629]
[1721253672747,15.7134,156.9,156.79,29.15]
[1721253672947,6.3728,156.92,156.88,6.3742]
[1721253673376,6.3723,156.93,156.88,6.3742]
[1721253674344,6.3719,156.94,156.89,7.64837467]
[1721253674854,6.3715,156.95,156.9,7.64787447]
[1721253675754,6.4756,156.98,156.89,22.3077]
[1721253675755,6.3719,156.94,156.89,22.3077]
[1721253676354,6.3722,156.93,156.89,22.3077]
[1721253676554,6.3722,156.93,156.89,15.934]
[1721253677569,6.3719,156.94,156.89,22.3078]
[1721253678454,6.3715,156.95,156.91,6.373]
[1721253678668,20.0,156.94,156.91,6.373]
[1721253678876,20.0,156.94,156.9,6.3733]
[1721253679259,26.372,156.94,156.89,22.3077]
[1721253680281,26.372,156.94,156.9,6.3733]
[1721253680579,26.372,156.94,156.89,22.3077]
[1721253681347,6.3725,156.93,156.89,15.934]
[1721253681575,6.3725,156.93,156.86,31.8752]
[1721253681576,6.3723,156.93,156.88,6.374]
[1721253681879,6.3723,156.93,156.86,15.9372]
[1721253681880,20.0,156.92,156.86,22.3122]
[1721253682082,26.3729,156.92,156.87,6.3744]
[1721253683363,26.3729,156.92,156.88,6.3742]
[1721253684368,20.0,156.92,156.86,17.21194965]
[1721253684667,6.3736,156.9,156.85,21.9241]
[1721253684896,20.0,156.89,156.84,6.3757]
[1721253685061,20.0,156.89,156.85,7.65035173]
[1721253685391,6.3735,156.9,156.86,6.375]
[1721253685786,26.3739,156.89,156.85,22.3137]
[1721253685997,26.3739,156.89,156.85,15.9384]
[1721253687198,26.3739,156.89,156.85,23.58877588]
[1721253687392,20.0,156.89,156.86,6.375]
[1721253688105,26.3739,156.89,156.85,22.3137]
[1721253688607,26.3739,156.89,156.82,31.8832]
[1721253688608,6.3747,156.87,156.82,6.3764]
[1721253688902,6.376,156.84,156.78,15.9453]
[1721253689082,6.376,156.84,156.79,6.3776]
[1721253689404,20.0,156.83,156.8,7.65282203]
[1721253689905,20.0,156.84,156.8,7.65282203]
[1721253691007,26.3759,156.84,156.79,1.27531831]
[1721253691379,6.3765,156.83,156.78,22.3232]
[1721253691597,20.0,156.82,156.78,22.3232]
[1721253691799,26.3768,156.82,156.78,22.3232]
[1721253691982,26.3768,156.82,156.78,15.9453]
[1721253692301,26.3768,156.82,156.78,22.3236]
[1721253692607,26.3768,156.82,156.78,15.9453]
[1721253693710,20.0,156.82,156.78,15.9453]
[1721253693915,6.3783,156.78,156.73,15.5442]
[1721253694206,15.9414,156.83,156.73,15.5442]
[1721253694406,6.3783,156.78,156.73,21.9242]
[1721253694638,20.0,156.77,156.74,17.22482291]
[1721253694801,20.0,156.77,156.76,6.3791]
[1721253695002,45.0,156.83,156.76,15.9473]
[1721253695223,20.0,156.82,156.78,6.3782]
[1721253695631,26.3767,156.82,156.77,7.65410722]
[1721253696443,6.3771,156.81,156.77,7.65410722]
[1721253696744,26.3775,156.8,156.76,15.9473]
[1721253697508,26.3775,156.8,156.73,15.5442]
[1721253697509,6.3781,156.79,156.74,6.3799]
[1721253697719,20.0,156.78,156.75,7.65525857]
[1721253698320,26.3779,156.79,156.74,6.3798]
[1721253698834,6.3783,156.78,156.74,6.3798]
[1721253700044,20.0,156.77,156.7,15.9537]
[1721253700207,20.0,156.79,156.7,15.9537]
[1721253700403,45.0,156.78,156.7,15.9537]
[1721253700606,20.0,156.77,156.7,15.9537]
[1721253701036,20.0,156.77,156.69,47.8451]
[1721253701037,20.0,156.77,156.73,6.3803]
[1721253701211,6.3798,156.75,156.7,6.3812]
[1721253701415,20.0,156.77,156.69,22.3186]
[1721253701416,6.38,156.74,156.69,22.3186]
[1721253701613,20.0,156.73,156.69,15.9367]
[1721253701819,6.3796,156.75,156.69,15.9367]
[1721253702034,20.0,156.74,156.72,6.3807]
[1721253702274,20.0,156.77,156.74,6.3797]
[1721253702558,6.2993,156.81,156.75,6.3794]
[1721253702559,6.3776,156.8,156.75,6.3794]
[1721253703356,6.3781,156.79,156.74,6.3798]
[1721253703946,20.0,156.78,156.74,6.3798]
[1721253704146,20.0,156.78,156.74,7.65564861]
[1721253704353,20.0,156.78,156.74,6.3798]
[1721253705234,20.0,156.78,156.74,7.65564867]
[1721253705882,20.0,156.78,156.74,6.3798]
[1721253706460,20.0,156.78,156.74,7.65564885]
[1721253706940,20.0,156.78,156.73,15.9509]
[1721253707142,20.0,156.82,156.73,15.9509]
[1721253707348,45.0,156.81,156.73,15.9509]
[1721253707560,6.3786,156.78,156.73,22.331]
[1721253707758,20.0,156.77,156.73,22.331]
[1721253708081,26.3788,156.77,156.73,22.331]
[1721253708773,6.3792,156.76,156.7,15.9533]
[1721253708980,6.3792,156.76,156.71,6.3809]
[1721253709146,20.0,156.75,156.7,22.3346]
[1721253709347,6.3799,156.75,156.7,22.3346]
[1721253709665,6.3792,156.76,156.71,1.27618537]
[1721253709869,20.0,156.75,156.72,6.3806]
[1721253710045,20.0,156.75,156.71,6.3811]
[1721253710366,20.0,156.75,156.72,6.3806]
[1721253710581,20.0,156.76,156.72,6.3806]
[1721253710756,26.3791,156.76,156.72,6.3806]
[1721253710944,20.0,156.76,156.72,6.3806]
[1721253711872,26.3792,156.76,156.72,6.3806]
[1721253714791,26.3792,156.76,156.71,1.27607716]
[1721253715070,6.3804,156.73,156.69,22.3186]
[1721253715275,20.0,156.72,156.69,22.3186]
[1721253717075,26.3809,156.72,156.67,22.339]
[1721253717289,6.3809,156.72,156.67,15.9565]
[1721253717479,20.0,156.71,156.68,6.3824]
[1721253717988,20.0,156.71,156.67,22.3392]
[1721253720069,20.0,156.71,156.7,6.3816]
[1721253720582,6.3784,156.78,156.73,6.38]
[1721253720908,6.3784,156.78,156.73,6.3803]
[1721253720909,6.3785,156.78,156.73,6.3803]
[1721253721683,6.3787,156.77,156.73,6.3803]
[1721253722272,20.0,156.76,156.73,6.3803]
[1721253722583,20.0,156.76,156.73,6.3802]
[1721253722789,26.3791,156.76,156.72,6.3806]
[1721253722982,26.3791,156.76,156.7,6.3815]
[1721253722983,6.3801,156.74,156.7,6.3815]
[1721253723300,26.3804,156.73,156.68,15.9555]
[1721253723474,6.3804,156.73,156.68,15.9555]
[1721253723796,20.0,156.72,156.68,22.3378]
[1721253725378,6.3813,156.71,156.67,6.3827]
[1721253725574,6.382,156.69,156.65,32.4728]
[1721253725906,6.3817,156.7,156.66,6.3832]
[1721253726189,20.0,156.69,156.66,6.3832]
[1721253726486,20.0,156.69,156.65,17.79083144]
[1721253726789,20.0,156.7,156.67,6.3827]
[1721253726971,6.3808,156.72,156.68,7.65879712]
[1721253727174,12.4497,156.78,156.73,6.38]
[1721253727374,12.4497,156.78,156.68,1.27639712]
[1721253727375,6.3792,156.76,156.72,22.3318]
[1721253727675,6.3788,156.77,156.72,22.3318]
[1721253727879,6.3792,156.76,156.72,22.3318]
[1721253728779,26.3796,156.75,156.72,15.9512]
[1721253730369,26.3796,156.75,156.7,6.3815]
[1721253730901,6.3801,156.74,156.7,6.3815]
[1721253731272,6.3801,156.74,156.69,22.3367]
[1721253731598,6.3801,156.74,156.7,6.3815]
[1721253731770,20.0,156.75,156.72,6.3807]
[1721253731966,26.3788,156.77,156.72,6.3807]
[1721253732219,6.3792,156.76,156.72,6.3807]
[1721253732413,20.0,156.75,156.72,6.3807]
[1721253732899,20.0,156.76,156.73,6.3803]
[1721253733136,20.0,156.78,156.74,1.27598887]
[1721253733433,6.3774,156.81,156.75,15.9486]
[1721253733602,6.3774,156.81,156.76,7.65464597]
[1721253733802,6.3775,156.8,156.76,7.65464597]
[1721253734106,15.9395,156.85,156.76,7.65464597]
[1721253734304,6.3776,156.8,156.75,22.3281]
[1721253734504,6.378,156.79,156.75,22.3281]
[1721253734710,6.3784,156.78,156.74,6.3798]
[1721253735598,6.378,156.79,156.74,6.3798]
[1721253735799,26.3784,156.78,156.74,6.3798]
[1721253735995,20.0,156.78,156.73,6.3803]
[1721253736206,20.0,156.78,156.72,31.4679]
[1721253736207,6.3792,156.76,156.72,37.8486]
[1721253736415,20.0,156.78,156.72,15.5163]
[1721253736616,20.0,156.8,156.72,15.5163]
[1721253736934,45.0,156.79,156.72,16.79229345]
[1721253737217,6.3788,156.77,156.72,21.897]
[1721253737433,20.0,156.76,156.72,15.5163]
[1721253737620,20.0,156.76,156.72,16.79229175]
[1721253738027,20.0,156.77,156.72,16.79229175]
[1721253738230,26.3788,156.77,156.73,6.3803]
[1721253738410,20.0,156.77,156.73,6.3803]
[1721253738609,26.3791,156.77,156.72,21.897]
[1721253738808,6.3793,156.76,156.72,23.1729309]
[1721253739026,20.0,156.77,156.74,6.3799]
[1721253739220,26.3783,156.78,156.73,22.3308]
[1721253739410,6.3788,156.77,156.73,15.9505]
[1721253739629,20.0,156.76,156.73,15.9505]
[1721253742025,6.3788,156.77,156.73,22.3308]
[1721253742207,45.0,156.79,156.73,22.3308]
[1721253742208,20.0,156.76,156.74,6.3799]
[1721253742404,20.0,156.77,156.73,17.22649052]
[1721253742712,15.9404,156.84,156.75,15.9483]
[1721253742713,20.0,156.78,156.75,15.9483]
[1721253742907,20.0,156.83,156.76,1.2756969]
[1721253743112,20.0,156.83,156.76,6.379]
[1721253743917,45.0,156.82,156.76,6.379]
[1721253744327,6.3778,156.8,156.75,22.3277]
[1721253744532,20.0,156.79,156.72,31.4678]
[1721253744835,6.3786,156.78,156.72,31.4678]
[1721253745031,26.3788,156.77,156.73,6.3802]
[1721253745224,6.3788,156.77,156.73,6.3802]
[1721253745732,6.3792,156.76,156.72,37.8484]
[1721253746415,6.3788,156.77,156.73,6.3803]
[1721253747213,6.3792,156.76,156.72,37.8485]
[1721253747413,6.3792,156.76,156.72,31.4678]
[1721253747634,6.3792,156.76,156.72,39.12442948]
[1721253747826,6.3788,156.77,156.73,6.3801]
[1721253748023,20.0,156.76,156.73,6.3801]
[1721253748230,20.0,156.76,156.74,6.3798]
[1721253748823,20.0,156.77,156.74,6.3798]
[1721253752142,20.0,156.77,156.73,7.65609922]
[1721253752346,26.3788,156.77,156.73,6.3802]
[1721253752933,20.0,156.77,156.74,6.3799]
[1721253753451,26.3788,156.77,156.73,6.3803]
[1721253753629,26.3788,156.77,156.72,37.8484]
[1721253754040,26.3788,156.77,156.73,6.3803]
[1721253754553,26.3788,156.77,156.73,7.65619832]
[1721253754733,26.3788,156.77,156.73,6.3803]
[1721253755053,6.3791,156.76,156.72,37.8484]
[1721253756524,6.3791,156.76,156.72,39.12438691]
[1721253756723,26.3789,156.77,156.72,39.12438691]
[1721253757043,6.3791,156.76,156.72,37.8484]
[1721253759032,26.3789,156.77,156.73,6.3803]
[1721253761826,20.0,156.77,156.72,16.79230513]
[1721253762032,6.3777,156.8,156.76,6.3788]
[1721253762231,20.0,156.79,156.77,6.3786]
[1721253762438,20.0,156.79,156.75,6.3794]
[1721253762640,26.3783,156.79,156.75,6.3794]
[1721253762841,20.0,156.79,156.76,6.3791]
[1721253763333,20.0,156.79,156.76,7.65483968]
[1721253763954,26.378,156.79,156.75,22.3282]
[1721253765557,26.378,156.79,156.76,1.27574948]
[1721253765734,20.0,156.79,156.76,7.65464948]
[1721253766050,20.0,156.8,156.76,7.65464948]
[1721253766260,6.3775,156.8,156.76,7.65464948]
[1721253766451,20.0,156.79,156.76,7.65464948]
[1721253766651,20.0,156.79,156.76,1.27574948]
[1721253767446,26.378,156.79,156.76,1.27574948]
[1721253767843,26.378,156.79,156.75,22.3282]
[1721253768440,26.378,156.79,156.75,15.9488]
[1721253768770,6.3784,156.78,156.75,15.9488]
[1721253769453,26.378,156.79,156.75,22.3283]
[1721253770073,6.3785,156.78,156.72,31.4675]
[1721253770245,20.0,156.77,156.73,1.27582293]
[1721253770445,20.0,156.77,156.74,1.27581914]
[1721253770645,20.0,156.77,156.72,31.4675]
[1721253771369,20.0,156.77,156.74,6.3799]
[1721253771667,26.3788,156.77,156.73,6.3803]
[1721253772650,20.0,156.77,156.74,6.3799]
[1721253773579,20.0,156.77,156.73,6.3802]
[1721253773866,20.0,156.77,156.74,17.22548455]
[1721253774053,20.0,156.78,156.75,6.3794]
[1721253774661,26.3785,156.78,156.74,15.9496]
[1721253774865,26.3785,156.78,156.74,22.3294]
[1721253775461,26.3785,156.78,156.74,15.9496]
[1721253778385,20.0,156.78,156.76,6.3789]
[1721253778590,6.3778,156.8,156.75,6.3794]
[1721253778886,26.378,156.79,156.75,6.3794]
[1721253780085,6.3766,156.83,156.76,17.22327303]
[1721253780260,15.9395,156.85,156.77,1.27556937]
[1721253780465,6.377,156.82,156.77,1.27556937]
[1721253780674,6.377,156.82,156.77,7.65396937]
[1721253780995,15.9395,156.85,156.76,22.3265]
[1721253780996,6.3772,156.81,156.76,22.3265]
[1721253781184,6.3776,156.8,156.76,22.3265]
[1721253781368,20.0,156.79,156.76,22.3265]
[1721253781787,26.3779,156.79,156.75,6.3795]
[1721253782364,20.0,156.79,156.76,6.379]
[1721253782594,20.0,156.79,156.76,7.65466692]
[1721253782766,20.0,156.8,156.76,7.65466692]
[1721253784084,20.0,156.8,156.72,31.4679]
[1721253784385,6.3797,156.75,156.72,15.5163]
[1721253784583,6.38,156.74,156.7,6.3815]
[1721253784884,26.3805,156.73,156.69,15.9543]
[1721253785085,26.3805,156.73,156.69,22.3363]
[1721253786471,26.3805,156.73,156.69,15.9543]
[1721253786685,35.9517,156.73,156.65,15.5422]
[1721253786887,6.3819,156.7,156.65,15.5422]
[1721253787069,6.3814,156.71,156.66,6.3828]
[1721253787374,20.0,156.7,156.67,6.3827]
[1721253787976,31.894,156.77,156.65,15.5422]
[1721253787977,22.1565,156.78,156.68,15.9552]
[1721253788285,6.3788,156.77,156.69,15.65]
[1721253788465,6.3788,156.77,156.7,16.92594543]
[1721253788665,6.3788,156.77,156.71,1.27599776]
[1721253789365,6.3788,156.77,156.73,6.3803]
[1721253789562,20.0,156.76,156.72,23.60801323]
[1721253789768,6.3806,156.73,156.68,6.3821]
[1721253789984,6.3806,156.73,156.65,15.5422]
[1721253789985,6.3806,156.73,156.69,6.3819]
[1721253790598,20.0,156.76,156.68,22.3379]
[1721253790768,6.3811,156.72,156.68,15.9556]
[1721253790970,6.3817,156.7,156.65,31.5009]
[1721253791278,20.0,156.69,156.66,6.3832]
[1721253791883,26.382,156.69,156.65,31.5009]
[1721253792391,31.8941,156.77,156.65,31.5009]
[1721253792392,6.3788,156.77,156.66,11.27649095]
[1721253792594,6.378,156.79,156.74,6.3798]
[1721253792765,6.3783,156.78,156.74,6.3798]
[1721253792967,6.3783,156.78,156.73,22.3309]
[1721253793596,6.3788,156.77,156.73,22.3309]
[1721253793792,20.0,156.76,156.73,22.3309]
[1721253795290,20.0,156.76,156.74,6.3799]
[1721253795587,20.0,156.79,156.73,15.9506]
[1721253795974,6.3794,156.76,156.72,6.3805]
[1721253796169,6.3805,156.73,156.7,15.9536]
[1721253796594,6.38,156.74,156.7,23.61138319]
[1721253797095,6.3797,156.75,156.7,23.61138319]
[1721253797401,6.3797,156.75,156.7,22.3352]
[1721253797976,6.3797,156.75,156.71,6.3811]
[1721253798187,6.38,156.74,156.7,22.3352]
[1721253799613,6.38,156.74,156.7,15.9536]
[1721253800077,6.3797,156.75,156.7,22.335]
[1721253800393,20.0,156.74,156.72,6.3806]
[1721253800787,20.0,156.75,156.72,6.3806]
[1721253801789,20.0,156.75,156.71,7.65726671]
[1721253802408,20.0,156.75,156.72,15.9517]
[1721253802588,20.0,156.79,156.72,15.9517]
[1721253802898,20.0,156.79,156.73,1.27596432]
[1721253803091,20.0,156.79,156.74,1.27592639]
[1721253804095,6.3787,156.78,156.73,6.3802]
[1721253804295,26.3789,156.77,156.73,6.3802]
[1721253806078,26.3789,156.77,156.74,1.2758352]
[1721253806709,26.3789,156.77,156.73,6.3802]
[1721253807600,26.3789,156.77,156.72,22.3323]
[1721253808111,20.0,156.77,156.72,15.9517]
[1721253808304,6.3797,156.75,156.72,15.9517]
[1721253809120,6.3792,156.76,156.72,22.3324]
[1721253809425,20.0,156.75,156.72,22.3324]
[1721253810937,26.3795,156.75,156.72,15.9517]
[1721253811236,26.3795,156.75,156.71,6.381]
[1721253812522,6.3795,156.75,156.71,6.381]
[1721253815926,6.3784,156.78,156.75,15.9484]
[1721253816300,20.0,156.77,156.75,15.9484]
[1721253817112,26.3787,156.77,156.72,15.9511]
[1721253817312,20.0,156.77,156.74,6.3797]
[1721253817508,26.379,156.77,156.73,1.27587812]
[1721253817719,26.379,156.77,156.73,7.65597812]
[1721253817896,20.0,156.77,156.74,6.3798]
[1721253818423,26.3788,156.77,156.73,6.3802]
[1721253819110,6.3792,156.76,156.72,22.3318]
[1721253819312,26.3788,156.77,156.73,6.3803]
[1721253819605,26.3788,156.77,156.72,15.9511]
[1721253819817,20.0,156.77,156.72,15.9511]
[1721253820322,6.3794,156.76,156.72,22.3315]
[1721253820903,26.3797,156.75,156.71,6.3809]
[1721253821124,20.0,156.75,156.72,6.3807]
[1721253823228,20.0,156.75,156.71,17.22876392]
[1721253823428,6.3784,156.78,156.74,6.3799]
[1721253823617,20.0,156.77,156.74,6.3799]
[1721253824633,26.3787,156.77,156.73,22.3306]
[1721253825325,6.3774,156.81,156.76,6.3788]
[1721253825507,6.3775,156.8,156.76,7.65445695]
[1721253825913,6.3775,156.8,156.76,1.27565695]
[1721253826811,26.378,156.79,156.75,15.9482]
[1721253827415,26.378,156.79,156.75,22.3276]
[1721253827824,20.0,156.79,156.75,22.3276]
[1721253828125,26.378,156.79,156.75,15.9482]
[1721253828328,6.3796,156.75,156.72,15.9517]
[1721253828531,6.3792,156.76,156.72,15.9517]
[1721253828731,20.0,156.79,156.73,1.27594484]
[1721253828732,20.0,156.75,156.73,1.27594484]
[1721253829039,20.0,156.79,156.76,6.379]
[1721253829526,26.3776,156.8,156.75,7.65509645]
[1721253829706,6.378,156.79,156.75,6.3794]
[1721253829912,20.0,156.78,156.75,6.3794]
[1721253830846,20.0,156.78,156.74,22.3293]
[1721253831137,26.3783,156.78,156.74,22.3293]
[1721253831438,20.0,156.78,156.74,22.3293]
[1721253832104,6.379,156.77,156.73,6.3803]
[1721253832932,6.379,156.77,156.71,15.9523]
[1721253832933,6.3792,156.76,156.71,15.9523]
[1721253833231,6.3792,156.76,156.72,6.3805]
[1721253833436,6.3789,156.77,156.72,6.3805]
[1721253833639,6.3789,156.77,156.73,6.3802]
[1721253834130,20.0,156.78,156.71,15.9523]
[1721253834445,6.3798,156.75,156.71,22.3334]
[1721253834622,20.0,156.74,156.71,15.9523]
[1721253835206,20.0,156.74,156.7,6.3814]
[1721253835207,26.3802,156.74,156.7,6.3814]
[1721253835412,20.0,156.74,156.67,6.432]
[1721253835636,45.0,156.77,156.7,15.9537]
[1721253835637,26.3792,156.76,156.7,15.9537]
[1721253835835,20.0,156.76,156.74,6.3798]
[1721253836040,16.5904,156.78,156.73,6.3802]
[1721253836041,20.0,156.77,156.73,6.3802]
[1721253836352,26.3787,156.77,156.72,15.9516]
[1721253836712,20.0,156.77,156.74,6.3797]
[1721253837109,26.3788,156.77,156.73,6.3802]
[1721253837328,26.3788,156.77,156.73,7.65613052]
[1721253837541,26.3788,156.77,156.72,22.3323]
[1721253837718,6.3793,156.76,156.72,22.3323]
[1721253838322,20.0,156.77,156.72,22.3323]
[1721253838323,26.3789,156.77,156.72,22.3323]
[1721253838718,20.0,156.77,156.7,6.3812]
[1721253838936,15.9453,156.79,156.7,6.3815]
[1721253838937,6.3802,156.74,156.7,6.3815]
[1721253839117,6.3805,156.73,156.69,15.9544]
[1721253839428,6.3801,156.74,156.69,22.3361]
[1721253839633,20.0,156.73,156.69,22.3361]
[1721253840537,20.0,156.73,156.7,6.3815]
[1721253840774,20.0,156.73,156.67,1.27617357]
[1721253841060,26.38,156.74,156.7,15.9536]
[1721253841245,26.38,156.74,156.7,23.61137134]
[1721253841420,20.0,156.74,156.71,6.3811]
[1721253842329,20.0,156.74,156.7,15.9536]
[1721253842541,6.38,156.74,156.7,17.22977346]
[1721253842737,6.3789,156.77,156.73,6.38]
[1721253842938,6.3789,156.77,156.72,15.9513]
[1721253842939,6.3789,156.77,156.72,22.332]
[1721253843264,6.3788,156.77,156.73,1.27597057]
[1721253843538,6.3788,156.77,156.68,1.27590264]
[1721253843744,6.3788,156.77,156.68,46.27590264]
[1721253844047,20.0,156.76,156.68,1.27590264]
[1721253844346,20.0,156.76,156.74,6.3798]
[1721253844537,15.6023,156.81,156.73,22.3302]
[1721253844538,6.3788,156.77,156.73,22.3302]
[1721253844736,20.0,156.76,156.73,22.3302]
[1721253845836,20.0,156.76,156.73,15.95]
[1721253846534,26.3793,156.76,156.72,6.3807]
[1721253846924,6.3797,156.75,156.71,6.381]
[1721253847333,6.3797,156.75,156.7,22.3348]
[1721253848038,20.0,156.76,156.71,7.65716483]
[1721253848039,26.3792,156.76,156.71,7.65716483]
[1721253848240,26.3792,156.76,156.72,6.3807]
[1721253848443,6.3796,156.75,156.71,1.2760601]
[1721253848742,6.6227,156.82,156.71,1.2760601]
[1721253848743,16.3271,156.85,156.72,15.0778]
[1721253848942,6.377,156.82,156.78,15.9456]
[1721253849141,6.3774,156.81,156.76,6.3789]
[1721253849356,6.3776,156.8,156.77,1.27560377]
[1721253849551,6.3779,156.79,156.75,22.3277]
[1721253850056,31.8718,156.88,156.75,22.3277]
[1721253850057,15.7329,156.89,156.77,15.0283]
[1721253850361,31.6641,156.93,156.83,15.9404]
[1721253850543,31.6641,156.93,156.84,6.3758]
[1721253850856,31.6641,156.93,156.82,6.3763]
[1721253851032,31.6641,156.93,156.81,7.65211823]
[1721253851033,15.7329,156.93,156.81,7.65211823]
[1721253851238,6.0553,156.92,156.77,30.9748]
[1721253851548,13.4769573,156.92,156.81,6.3769]
[1721253851748,45.0,156.91,156.81,7.65207295]
[1721253851950,45.0,156.91,156.81,1.27517142]
[1721253852150,45.0,156.91,156.78,1.27524227]
[1721253852351,15.7329,156.87,156.72,15.0283]
[1721253852543,6.4805,156.86,156.72,15.0283]
[1721253852757,6.4805,156.86,156.72,16.30426735]
[1721253852758,65.0,156.85,156.72,16.30426735]
[1721253852933,65.0,156.85,156.73,1.27586307]
[1721253853133,20.0,156.85,156.74,1.27553776]
[1721253853364,20.0,156.85,156.81,6.377]
[1721253853738,6.4805,156.91,156.79,15.3586]
[1721253853739,20.0,156.86,156.79,15.3586]
[1721253853940,20.0,156.9,156.8,1.27546832]
[1721253854142,6.3743,156.88,156.83,6.3761]
[1721253854363,6.3731,156.91,156.84,1.27503723]
[1721253854671,21.5896,156.95,156.79,44.5386]
[1721253854672,21.5896,156.95,156.85,15.938]
[1721253854853,6.3746,156.88,156.83,6.3762]
[1721253855168,6.3747,156.87,156.82,22.3182]
[1721253855541,6.3758,156.85,156.8,1.27499677]
[1721253855756,21.5896,156.88,156.79,15.9448]
[1721253855955,21.5896,156.88,156.76,15.9477]
[1721253855956,6.3767,156.82,156.76,15.9477]
[1721253856160,6.3772,156.81,156.76,15.9477]
[1721253856354,20.0,156.84,156.76,22.3268]
[1721253856570,6.3775,156.81,156.76,22.3268]
[1721253857267,20.0,156.84,156.75,16.39732963]
[1721253857480,45.0,156.83,156.73,15.9505]
[1721253857681,6.3792,156.76,156.72,6.3807]
[1721253857984,15.9435,156.81,156.73,1.27594584]
[1721253858193,6.3784,156.78,156.74,1.27575933]
[1721253858493,20.0,156.77,156.73,6.3802]
[1721253858678,6.3784,156.78,156.74,7.65562892]
[1721253858881,20.0,156.77,156.72,15.9515]
[1721253859190,20.0,156.77,156.73,6.3803]
[1721253859390,20.0,156.77,156.74,1.27578548]
[1721253859566,20.0,156.77,156.74,6.3798]
[1721253860063,20.0,156.77,156.73,6.3803]
[1721253860997,26.3788,156.77,156.73,6.3803]